Cogmind - Beta 10.2 @@@ ROGUE MODE // 2022.02.20 @ 01:07:28 Player: russur Result: Self-destructed Performance ------------- Evolutions (1) 500 Regions Visited (3) 600 Robots Destroyed (28) 140 Value Destroyed (620) 620 Prototype IDs (2) 40 Alien Tech Used (0) 0 Bonus (0) 0 TOTAL SCORE: 1900 Bonus ------- None Cogmind --------- Core Integrity 228/400 Matter 300/300 Energy 100/100 System Corruption 0% Temperature Cool (12) Movement Treading (160) Location -9/Materials Parts ------- > --- POWER (1) -------- (None) > --- PROPULSION (2) --- Light Treads Light Treads > --- UTILITY (4) ------ Heat Sink Disposable Heat Sink Visual Processing Unit Light Armor Plating > --- WEAPON (2) ------- Beam Rifle Heavy Assault Rifle > --- INVENTORY (4) ---- Ion Engine Light Ion Engine Small Laser Mining Laser Peak State ------------ > --- POWER ------------ Improved Ion Engine > --- PROPULSION ------- Light Treads Light Treads > --- UTILITY ---------- Heat Sink Disposable Heat Sink Visual Processing Unit Light Armor Plating > --- WEAPON ----------- Beam Rifle Heavy Assault Rifle > --- INVENTORY -------- Ion Engine Light Ion Engine Small Laser Mining Laser [Rating: 14] Favorites ----------- Power Improved Ion Engine Engine Improved Ion Engine Propulsion Light Treads Treads Light Treads Wheel Wheel Flight Unit Flight Unit Utility Heat Sink Device Heat Sink Processor Visual Processing Unit Protection Light Armor Plating Weapon Heavy Assault Rifle Energy Gun Small Laser Ballistic Gun Heavy Assault Rifle Build | -11 -10 -10 -9 ------- Run | Scr Mat Min Mat Slots Evolved 2 | . . . 2 Power . | . . . . Propulsion . | . . . . Utility 2 | . . . 2 Weapon . | . . . . Parts Attached 31 | 5 8 . 18 Power 4 | 1 1 . 2 Engine 4 | 1 1 . 2 Core . | . . . . Reactor . | . . . . Propulsion 10 | 2 2 . 6 Treads 5 | . . . 5 Leg . | . . . . Wheel 2 | 2 . . . Hover . | . . . . Flight 3 | . 2 . 1 Utility 8 | . 2 . 6 Device 4 | . 1 . 3 Storage . | . . . . Processor 1 | . . . 1 Hackware . | . . . . Protection 3 | . 1 . 2 Artifact . | . . . . Weapon 9 | 2 3 . 4 Energy Gun 6 | 2 1 . 3 Energy Cannon . | . . . . Ballistic Gun 3 | . 2 . 1 Ballistic Cannon . | . . . . Launcher . | . . . . Special Weapon . | . . . . Impact Weapon . | . . . . Slashing Weapon . | . . . . Piercing Weapon . | . . . . Special Melee Weapon . | . . . . Unidentified Prototypes . | . . . . Parts Lost 11 | . 2 . 9 Power 3 | . 1 . 2 Propulsion 3 | . . . 3 Utility 2 | . . . 2 Weapon 3 | . 1 . 2 Highest Loss Streak 3 | . 2 . 3 Average Slot Usage (%) 88 | . 75 85 90 Engine 11 | . 14 14 10 Treads 15 | . . . 18 Wheel 2 | . 21 . . Flight 3 | . 4 28 3 Device 16 | . . 14 19 Processor 1 | . . . 1 Protection 13 | . 7 . 15 Energy Gun 12 | . 21 14 10 Ballistic Gun 10 | . 4 14 11 Naked Turns . | . . . . Heaviest Build 21 | 9 12 6 21 Greatest Support 40 | 26 26 8 40 Greatest Overweight (x) 2 | 1 . . 2 Average Overweight (x) . | . . . . Largest Inventory Capacity 4 | 4 4 4 4 Average Capacity 4 | 4 4 4 4 Most Carried 4 | 3 4 3 4 Average Carried 3 | . 3 3 3 Final Capacity 4 | 4 4 4 4 Final Carried 4 | 3 3 3 4 Class Distribution -------------------- 83% | Scavenger-Mutant 16% | Mutant Dominant Class ---------------- Mutant | -10/Materials Mutant | -10/Mines Scavenger-Mutant | -9/Materials Resources | -11 -10 -10 -9 ----------- Run | Scr Mat Min Mat Matter Collected 647 | 250 76 . 321 Remotely . | . . . . Salvage Created 1061 | 160 199 . 702 Parts 72 | 7 16 . 49 Haulers Intercepted 2 | . . . 2 Recyclers Shooed . | . . . . Parts Field Recycled . | . . . . Retrieved Matter . | . . . . Parts Self-Destructed . | . . . . Prevented . | . . . . Kills | -11 -10 -10 -9 ------- Run | Scr Mat Min Mat Combat Hostiles Destroyed 19 | . 6 . 13 Guns 18 | . 5 . 13 AOE 1 | . 1 . . Classes Destroyed 8 | 2 2 . 4 Worker 1 | . . . 1 Tunneler 3 | 3 . . . Hauler 2 | . . . 2 Recycler 1 | 1 . . . Watcher 2 | . . . 2 Swarmer 6 | . 3 . 3 Grunt 9 | . 3 . 6 Sentry 4 | . . . 4 Best Kill Streak 8 | 4 6 . 8 Combat Bots Only 6 | . 6 . 6 Max Kills in Single Turn 1 | 1 1 . 1 Gunslinging . | . . . . Exploded 1 | . 1 . . Melee . | . . . . Uniques/NPCs Destroyed . | . . . . Combat | -11 -10 -10 -9 -------- Run | Scr Mat Min Mat Damage Taken 1118 | . 188 . 930 Core 183 | . 11 . 172 Absorbed by Shields . | . . . . Core Remaining (%) 97 | 100 . 95 . Volleys Fired 100 | 10 14 . 76 Largest 2 | 2 2 . 2 Hottest 80 | 80 80 . 79 Shots Fired 181 | 20 23 . 138 Gun 181 | 20 23 . 138 Cannon . | . . . . Launcher . | . . . . Special . | . . . . Kinetic 78 | . 2 . 76 Thermal 62 | . . . 62 Explosive . | . . . . Electromagnetic 41 | 20 21 . . Robot Hit Streak 12 | 4 7 . 12 Robot Miss Streak 6 | 2 2 . 6 Penetration Max . | . . . . Secondary Targets 4 | . . . 4 Max Gunslinging Chain 1 | . . . 1 Shots Hit Robots 117 | 12 17 . 88 Core Hits 46 | 5 8 . 33 Critical Hits 1 | . . . 1 Critical Kills . | . . . . Critical Parts Destroyed 1 | . . . 1 Melee Attacks . | . . . . Impact . | . . . . Slashing . | . . . . Piercing . | . . . . Sneak Attacks . | . . . . Combat Hostiles . | . . . . Follow-up Attacks . | . . . . Damage Inflicted 1427 | 213 244 . 970 Guns 1343 | 176 200 . 967 Cannons . | . . . . Explosions 81 | 37 44 . . Melee . | . . . . Ramming 3 | . . . 3 Kinetic 533 | . . . 533 Thermal 515 | 37 44 . 434 Explosive . | . . . . Electromagnetic 376 | 176 200 . . Impact . | . . . . Slashing . | . . . . Piercing . | . . . . Highest Corruption . | . . . . Average Corruption . | . . . . Corruption Purged . | . . . . Overload Shots . | . . . . Overflow Damage 26 | 19 7 . . Projectiles . | . . . . Explosions 26 | 19 7 . . Melee . | . . . . Knockbacks . | . . . . Impact . | . . . . Kinetic . | . . . . Secondary . | . . . . Self-Inflicted Damage 40 | . 40 . . Shots 1 | . 1 . . Rammed 2 | . . . 2 Targets Rammed 2 | . . . 2 Kicked . | . . . . Crushed . | . . . . Highest Temperature 258 | 90 258 . 18 Average Temperature 78 | 36 145 . 8 Received Heat Transfer 378 | . 54 . 324 Effects 1 | . 1 . . Energy Bleed 1 | . 1 . . Siege Activations . | . . . . Robots Corrupted . | . . . . Combat Hostiles . | . . . . Parts Fried 2 | 2 . . . Impact Corruptions . | . . . . Robots Melted . | . . . . Combat Hostiles . | . . . . Parts Melted 1 | . . . 1 Heat Transferred 1082 | 50 . . 1032 Parts Sabotaged . | . . . . Parts Stolen . | . . . . Parts Stripped . | . . . . Power Chain Reactions 2 | 1 1 . . Missiles Intercepted . | . . . . Alert | -11 -10 -10 -9 ------- Run | Scr Mat Min Mat Peak Influence 215 | 20 133 51 215 Initial 51 | . 13 51 19 Average 82 | 6 79 51 94 Maximum Alert Level 1 | . . . 1 Low Security (%) 96 | 100 100 100 95 Level 1 3 | . . . 4 Level 2 . | . . . . Level 3 . | . . . . Level 4 . | . . . . Level 5 . | . . . . High Security . | . . . . Max Security . | . . . . Squads Dispatched 3 | . 1 . 2 Investigation 1 | . 1 . . Extermination . | . . . . Reinforcement 2 | . . . 2 Assault . | . . . . Garrison . | . . . . Intercept . | . . . . Construction Impeded . | . . . . Haulers Reinforced . | . . . . Stealth | -11 -10 -10 -9 --------- Run | Scr Mat Min Mat Distress Signals 3 | . . . 3 Communications Jammed . | . . . . Distress Signals . | . . . . Times Spotted 29 | . 7 . 22 Peak Tracking Total 4 | . 3 . 4 Tactical Retreats . | . . . . Traps | -11 -10 -10 -9 ------- Run | Scr Mat Min Mat Traps Triggered . | . . . . Indirectly . | . . . . Trap Hack Attempts . | . . . . Triggered . | . . . . Disarmed . | . . . . Reprogrammed . | . . . . Reused . | . . . . Traps Extracted . | . . . . Installed . | . . . . Triggered . | . . . . Machines | -11 -10 -10 -9 ---------- Run | Scr Mat Min Mat Machines Disabled 1 | . . . 1 Max in Single Turn 1 | . . . 1 Machines Sabotaged . | . . . . Garrisons Compromised . | . . . . Overloaded Fab Kills . | . . . . Fab Network Shutdowns . | . . . . Hacking | -11 -10 -10 -9 --------- Run | Scr Mat Min Mat Machines Accessed 6 | . 1 . 5 Terminals 6 | . 1 . 5 Fabricators . | . . . . Repair Stations . | . . . . Recycling Units . | . . . . Scanalyzers . | . . . . Garrison Access . | . . . . Total Hacks 14 | . 2 . 12 Successful 8 | . . . 8 Failed 6 | . 2 . 4 Catastrophic 1 | . 1 . . Database Lockouts . | . . . . Manual 12 | . 2 . 10 Terminals 14 | . 2 . 12 Fabricators . | . . . . Repair Stations . | . . . . Recycling Units . | . . . . Scanalyzers . | . . . . Garrison Access . | . . . . Terminal Hacks 4 | . . . 4 Prototype ID Bank 1 | . . . 1 Terminal Index 1 | . . . 1 Alert Level 1 | . . . 1 Unreport Threat 1 | . . . 1 Fabricator Hacks . | . . . . Repair Station Hacks . | . . . . Recycling Unit Hacks . | . . . . Scanalyzer . | . . . . Garrison Access Hacks . | . . . . Unauthorized Hacks 4 | . . . 4 Terminals 4 | . . . 4 Botnet 3 | . . . 3 Detonate 1 | . . . 1 Fabricators . | . . . . Repair Stations . | . . . . Recycling Units . | . . . . Scanalyzers . | . . . . Garrison Access . | . . . . Data Cores Recovered . | . . . . Used . | . . . . Hacking Detections 4 | . 1 . 3 Full Trace Events 2 | . 1 . 1 Feedback Events . | . . . . Feedback Blocked . | . . . . Robot Schematics Acquired . | . . . . Robots Built . | . . . . Matter . | . . . . Time . | . . . . Total Robot Build Rating . | . . . . Part Schematics Acquired . | . . . . Parts Built . | . . . . Matter . | . . . . Time . | . . . . Total Part Build Rating . | . . . . Parts Repaired . | . . . . Time . | . . . . Parts Recycled . | . . . . Recycled Matter . | . . . . Retrieved Matter . | . . . . Retrieved Components . | . . . . Parts Scanalyzed . | . . . . Part Schematics Acquired . | . . . . Parts Damaged . | . . . . Bothacking | -11 -10 -10 -9 ------------ Run | Scr Mat Min Mat Used RIF Installer . | . . . . Robots Hacked . | . . . . Non-combat . | . . . . Combat . | . . . . Robot Hacks Applied . | . . . . Relay Couplers Released . | . . . . Robots Rewired . | . . . . Allies Hacked . | . . . . Hacks Repelled . | . . . . Allies | -11 -10 -10 -9 -------- Run | Scr Mat Min Mat Total Allies . | . . . . Largest Group . | . . . . Highest-Rated Group . | . . . . Highest-Rated Ally . | . . . . Total Orders . | . . . . Ally Attacks . | . . . . Total Damage . | . . . . Kills . | . . . . Allies Corrupted . | . . . . Allies Melted . | . . . . Intel | -11 -10 -10 -9 ------- Run | Scr Mat Min Mat Robot Analysis Total . | . . . . Derelict Logs Recovered . | . . . . Drone Launches . | . . . . Drone Recoveries . | . . . . Exploration | -11 -10 -10 -9 ------------- Run | Scr Mat Min Mat Turns Passed 861 | 89 99 15 658 Spaces Moved 437 | 56 59 40 282 Core 12 | 11 . . 1 Treads 249 | . . . 249 Legs . | . . . . Wheels 84 | 45 39 . . Hover . | . . . . Flight 92 | . 20 40 32 Fastest Speed 37 | 50 37 37 37 Average Speed 118 | 86 72 37 146 Slowest Speed 160 | 100 90 37 160 Overloaded Moves . | . . . . Propulsion Burnouts . | . . . . Robots Hopped . | . . . . Cave-ins Triggered . | . . . . Exploration Rate (%) 16 | 4 13 17 31 Regions Visited 3 Branch Regions 1 Pre-discovered Areas . | . . . . Known Exits Taken . | . . . . Unknown Exits Taken 3 | 1 1 1 . Scrap Searched . | . . . . Spaces Dug . | . . . . Terrain Destroyed 6 | 4 2 . . Melee . | . . . . Projectile . | . . . . AOE 6 | 4 2 . . Terrain Rammed . | . . . . Walls Destroyed . | . . . . Machines Disabled . | . . . . Actions | -11 -10 -10 -9 --------- Run | Scr Mat Min Mat Total 595 | 73 92 39 391 Wait 6 | . . . 6 Move 434 | 55 58 39 282 Hop . | . . . . Pick Up 9 | 3 4 . 2 Fast Attach 21 | 5 7 . 9 Attach 4 | . 1 . 3 Detach . | . . . . Swap 6 | . . . 6 Drop 13 | . 8 . 5 Fire 100 | 10 14 . 76 Melee . | . . . . Ram . | . . . . Kick . | . . . . Crush 2 | . . . 2 Escape Stasis . | . . . . Rewire . | . . . . Trap . | . . . . Miscellaneous . | . . . . Route ------- -11/Scrapyard -10/Materials -10/Mines -9/Materials (discovered 1 exit: [*Min]) History --------- Turn | Location | Event 21 | -11/Scrapyard | Discovered new exit (range 15) 90 | -11/Scrapyard | Entered Materials 101 | -10/Materials | Discovered new exit (range 16) 189 | -10/Materials | Entered Mines 199 | -10/Mines | Discovered new exit (range 13) 204 | -10/Mines | Entered Materials 204 | -9/Materials | Evolved 2 slots: Utility x2 299 | -9/Materials | Lost 3 parts (1p1n1w) 452 | -9/Materials | Discovered new exit (range 7) 456 | -9/Materials | Build established: Scavenger-Mutant 862 | -9/Materials | Self-destructed Last Messages --------------- >>Trojan(Botnet) Trojan loaded successfully. Testing... Terminal linked with 2 systems. Awaiting botnet instructions. >>Trojan(Detonate) Trojan loaded successfully. Testing... Scanning machine control network... Found 1 applicable machine. M4FXYWE8YO: Neutrino Reactor Infected machine control systems. 00775_ Acquired 40 matter. 00777_ K-01 Serf collects debris. 00835_ W-16 Scout destroyed. 00841_ Acquired 3 matter. 00852_ A-02 Transporter destroyed. 00855_ Acquired 6 matter. 00857_ Acquired 3 matter. 00862_ Imp. Ion Engine destroyed. Map ----- +----------------------------------------------------+ | #! =#??????? #????????????# #????? ##! | | + #??????? +????????????# # ???? ##!! | | # #??????? #????????????# # ? ##%! | | # ! #??????? #????????????# #? """ ?#!! | | # ! #???????? #????????????# +? """ ?#!! | | # #???????? +????????????# #??""" ??# | | # #???????????????????????# #??""" ??# | | ##########???????????????????????# #???"" ???# | | ?????????????????????????????????# #??? ???# | | ?????????????????????????????????# #####+##### | | ?????????????????????????????????# | | ?????????????????????????????????# % | | ?????????????????????????????????# % | | ????????????????#????????????????# ##### ####/## | | ????????????????# ???????????????# #???# # = | | ????????????????# ??????????????# #???# #"" != | | ????????????????# ????????####### #???# #"T !! | | ??????????# ????# ???????#[ # #???# #"" !! | | ???????????? ??# ######## # #???# # !! | | ????????######+## # " # #???# # | | ??????? # """ # #???? ####### | | ??????? gg !% + """ # #???? ??????? | | ??????? * # """ # #???? ??????? | | ????????# # "" # #???? ??????? | | ????????# =[=# """ # #???? ??????? | | ????????# !=@[# "" + #???? ??????? | | ????????# != """ =[!# """ # #???? ??????? | | ????????# != """"" ! # " # #???? ??????? | | ????????# """"" # # #???????????? | | ????????? """"" ####### #???????????? | | ????????? """ #?????# #???????????? | | ?????????? ? #?????# #???????????? | | ?????????? ??? ? #?????# #???????????? | | ??????????? "?????? #?????# #???????????? | | ????????????????????? #?????? #???????????? | | ???????????????????? #?????? #???????????? | | ???????????????????? !! ?????? ???????????? | | ??????????????????? !a ?????? ???????????? | | ??????????????????? !! w?????? ???????????? | | ???????????????????? ##??????####???????????? | | ???????????????????? ???????????????????????? | | ?????????????????????###+#???????????????????????? | | ???????????????????????? ????????????????????????? | | ?????????????????????????????????????????????????? | | ?????????????????????????????????????????????????? | | ?????????????????????????????????????????????????? | | ?????????????????????????????????????????????????? | | ?????????????????????????????????????????????????? | | ?????????????????????????????????????????????????? | | ?????????????????????????????????????????????????? | +----------------------------------------------------+ Best States ------------- Heat Dissipation 48 Coolant Potential 50 Energy Generation 12 Energy Capacity 265 Matter Stores 300 Matter Capacity 300 Sight Range 18 Terrain Scan Density 10 Armor Coverage 300 Evasion (%) 62 Recoil Reduction 2 Item Schematics ----------------- None Robot Schematics ------------------ None Fabricated ------------ Nothing Alien Tech Used ----------------- None Achievements -------------- None Challenges ------------ None Game ------ Seed RiotGuidanceEngine Manual? 0 Play Time 00:12:03 Cumulative 19.5 hours Start 2022.02.20 @ 00:43:20 End 2022.02.20 @ 01:07:28 Sessions 3 Manual Loads 0 Difficulty Rogue Special Mode None Game No. 49 Rogue 49 Adventurer 0 Explorer 0 Win Type - Total 0 Types 0/0/0/0/0/0/0/0/0 Lore% 20 Gallery% 28 Achievement% 23 Wizard Run 0 Options --------- ASCII 0 Keyboard 0 Movement Mouse Keybinds 0 Fullscreen 1 Font 16/SmallcapsGlow Map View 76x50 Tactical HUD 1 Map Filters NONE Filters NONE Steam 1 RUN: 613ce6e6-92db-4878-8dad-f6cc67e00dc7